[Event "5"]
[Site "Emanuel Lasker Arena"]
[Date "2024.04.09"]
[Round "5"]
[White "CarlsenVomFach"]
[Black "Einpassant"]
[Result "0-1"]
[WhiteElo "2230"]
[BlackElo "1620"]
[Annotator "RC"]
[PlyCount "60"]
[EventDate "2024.04.09"]
[EventType "swiss (blitz)"]
[TimeControl "60"]

1. d4 {[%emt 0:00:01]} Nf6 {[%emt 0:00:01]} 2. c4 {[%emt 0:00:01]} e6 {[%emt 0:00:01]} 3. Nc3 {[%emt 0:00:01]} Bb4 {[%emt 0:00:01]} 4. Qc2 {[%emt 0:00:01]} O-O {[%emt 0:00:01]} 5. a3 {[%emt 0:00:01]} Bxc3+ {[%emt 0:00:01]} 6. Qxc3 {[%emt 0:00:01]} d5 {[%emt 0:00:01]} 7. Nf3 {[%emt 0:00:01]} dxc4 {[%emt 0:00:01]} 8. Qxc4 {[%emt 0:00:01]} b6 {[%emt 0:00:01]} 9. Bg5 {[%emt 0:00:01]} Ba6 {[%emt 0:00:01]} 10. Qa4 {[%emt 0:00:01]} c5 {[%emt 0:00:01]} 11. dxc5 {[%emt 0:00:01]} bxc5 {[%emt 0:00:01]} 12. Rc1 {[%emt 0:00:01]} Qb6 {[%emt 0:00:01]} 13. Bxf6 {[%emt 0:00:01]} gxf6 {[%emt 0:00:01]} 14. Rc2 {[%emt 0:00:00]} Rd8 {[%emt 0:00:04]} 15. Qg4+ {[%emt 0:00:01]} Kh8 {[%emt 0:00:01]} 16. Qh5 {[%emt 0:00:01]} Rd5 {[%emt 0:00:02]} 17. Qxf7 {[%emt 0:00:01]} Nd7 {[%emt 0:00:03]} 18. e4 {[%emt 0:00:08]} Bxf1 {[%emt 0:00:04]} 19. Rxf1 {[%emt 0:00:01]} Rd3 {[%emt 0:00:03]} 20. Ke2 {[%emt 0:00:03]} Rf8 {[%emt 0:00:03]} 21. Qe7 {[%emt 0:00:03]} Qb5 {[%emt 0:00:03]} 22. a4 {[%emt 0:00:01]} Qa6 {[%emt 0:00:03]} 23. Rfc1 {[%emt 0:00:03]} Rd4+ {[%emt 0:00:02]} 24. Ke1 {[%emt 0:00:01]} Rxe4+ {[%emt 0:00:01]} 25. Kd2 {[%emt 0:00:01]} Qe2+ {[%emt 0:00:02]} 26. Kc3 {[%emt 0:00:00]} Rc4+ {[%emt 0:00:01]} 27. Kb3 {[%emt 0:00:00]} Rb8+ {[%emt 0:00:01]} 28. Ka3 {[%emt 0:00:02]} Qd3+ {[%emt 0:00:01]} 29. Rc3 {[%emt 0:00:02]} Rxa4+ {[%emt 0:00:02]} 30. Kxa4 {[%emt 0:00:01]} Qa6# {[%emt 0:00:01] (Lag: Av=0.06s, max=0.4s)} 0-1

[Event "5"]
[Site "Emanuel Lasker Arena"]
[Date "2024.04.09"]
[Round "5"]
[White "Alicia"]
[Black "Sauerbruch"]
[Result "1-0"]
[WhiteElo "2226"]
[BlackElo "1620"]
[Annotator "RC"]
[PlyCount "51"]
[EventDate "2024.04.09"]
[EventType "swiss (blitz)"]
[TimeControl "60"]

1. e4 {[%emt 0:00:01]} e5 {[%emt 0:00:01]} 2. Nf3 {[%emt 0:00:01]} Nc6 {[%emt 0:00:01]} 3. Bb5 {[%emt 0:00:01]} a6 {[%emt 0:00:01]} 4. Ba4 {[%emt 0:00:01]} Nf6 {[%emt 0:00:01]} 5. O-O {[%emt 0:00:01]} Be7 {[%emt 0:00:01]} 6. Re1 {[%emt 0:00:01]} b5 {[%emt 0:00:01]} 7. Bb3 {[%emt 0:00:01]} O-O {[%emt 0:00:01]} 8. c3 {[%emt 0:00:01]} d5 {[%emt 0:00:01]} 9. exd5 {[%emt 0:00:01]} Nxd5 {[%emt 0:00:01]} 10. Nxe5 {[%emt 0:00:01]} Nxe5 {[%emt 0:00:01]} 11. Rxe5 {[%emt 0:00:01]} c6 {[%emt 0:00:01]} 12. d4 {[%emt 0:00:01]} Bd6 {[%emt 0:00:01]} 13. Re2 {[%emt 0:00:01]} Qh4 {[%emt 0:00:01]} 14. g3 {[%emt 0:00:01]} Qh3 {[%emt 0:00:01]} 15. Nd2 {[%emt 0:00:01]} Bf5 {[%emt 0:00:01]} 16. Ne4 {[%emt 0:00:02]} Bg4 {[%emt 0:00:03]} 17. Nxd6 {[%emt 0:00:01]} Qh5 {[%emt 0:00:02]} 18. f3 {[%emt 0:00:01]} Nf4 {[%emt 0:00:03]} 19. fxg4 {[%emt 0:00:01]} Nh3+ {[%emt 0:00:04]} 20. Kg2 {[%emt 0:00:01]} Qxg4 {[%emt 0:00:01]} 21. Qd3 {[%emt 0:00:03]} h5 {[%emt 0:00:03]} 22. Qe4 {[%emt 0:00:03]} h4 {[%emt 0:00:03]} 23. Qxg4 {[%emt 0:00:03]} hxg3 {[%emt 0:00:01]} 24. Qxh3 {[%emt 0:00:01]} gxh2 {[%emt 0:00:01]} 25. Kxh2 {[%emt 0:00:01]} b4 {[%emt 0:00:02]} 26. Qd7 {[%emt 0:00:02] Sauerbruch resigns (Lag: Av=0.09s, max=1.1s)} 1-0

[Event "5"]
[Site "Emanuel Lasker Arena"]
[Date "2024.04.09"]
[Round "5"]
[White "Swindler"]
[Black "PinPointPro"]
[Result "1-0"]
[WhiteElo "2226"]
[BlackElo "1984"]
[Annotator "RC"]
[PlyCount "87"]
[EventDate "2024.04.09"]
[EventType "swiss (blitz)"]
[TimeControl "60"]

1. e4 {[%emt 0:00:01]} e5 {[%emt 0:00:01]} 2. Nf3 {[%emt 0:00:01]} Nc6 {[%emt 0:00:01]} 3. Bb5 {[%emt 0:00:01]} a6 {[%emt 0:00:01]} 4. Ba4 {[%emt 0:00:01]} Nf6 {[%emt 0:00:01]} 5. O-O {[%emt 0:00:01]} Be7 {[%emt 0:00:01]} 6. Re1 {[%emt 0:00:01]} b5 {[%emt 0:00:01]} 7. Bb3 {[%emt 0:00:00]} O-O {[%emt 0:00:01]} 8. c3 {[%emt 0:00:01]} d6 {[%emt 0:00:01]} 9. d4 {[%emt 0:00:01]} Bg4 {[%emt 0:00:01]} 10. d5 {[%emt 0:00:01]} Na5 {[%emt 0:00:01]} 11. Bc2 {[%emt 0:00:01]} Qc8 {[%emt 0:00:01]} 12. Nbd2 {[%emt 0:00:01]} c6 {[%emt 0:00:01]} 13. h3 {[%emt 0:00:01]} Bd7 {[%emt 0:00:01]} 14. b4 {[%emt 0:00:01]} Nb7 {[%emt 0:00:01]} 15. dxc6 {[%emt 0:00:01]} Qxc6 {[%emt 0:00:01]} 16. Ba3 {[%emt 0:00:01]} Qxc3 {[%emt 0:00:02]} 17. Bb3 {[%emt 0:00:03]} Rac8 {[%emt 0:00:02]} 18. Rc1 {[%emt 0:00:03]} Qd3 {[%emt 0:00:02]} 19. g4 {[%emt 0:00:06]} Be6 {[%emt 0:00:03]} 20. g5 {[%emt 0:00:03]} Rxc1 {[%emt 0:00:01]} 21. Bxc1 {[%emt 0:00:01]} Nh5 {[%emt 0:00:03]} 22. g6 {[%emt 0:00:03]} Nf4 {[%emt 0:00:06]} 23. gxf7+ {[%emt 0:00:01]} Bxf7 {[%emt 0:00:01]} 24. Re3 {[%emt 0:00:03]} Nxh3+ {[%emt 0:00:01]} 25. Kg2 {[%emt 0:00:01]} Nf4+ {[%emt 0:00:03]} 26. Kg3 {[%emt 0:00:02]} Nh5+ {[%emt 0:00:02]} 27. Kg4 {[%emt 0:00:02]} Nf6+ {[%emt 0:00:02]} 28. Kg3 {[%emt 0:00:02]} Bc4 {[%emt 0:00:03]} 29. Rxd3 {[%emt 0:00:01]} Bxb3 {[%emt 0:00:02]} 30. Qxb3+ {[%emt 0:00:01]} d5 {[%emt 0:00:01]} 31. Rxd5 {[%emt 0:00:01]} Kh8 {[%emt 0:00:01]} 32. Rxe5 {[%emt 0:00:01]} Bd6 {[%emt 0:00:02]} 33. Qb2 {[%emt 0:00:01]} Nh5+ {[%emt 0:00:01]} 34. Kh2 {[%emt 0:00:01]} Nd8 {[%emt 0:00:01]} 35. Nc4 {[%emt 0:00:01]} bxc4 {[%emt 0:00:01]} 36. Qd4 {[%emt 0:00:02]} Bxb4 {[%emt 0:00:01]} 37. Rxh5 {[%emt 0:00:01]} c3 {[%emt 0:00:00]} 38. Ng5 {[%emt 0:00:01]} Kg8 {[%emt 0:00:01]} 39. Qd5+ {[%emt 0:00:01]} Nf7 {[%emt 0:00:01]} 40. Nxf7 {[%emt 0:00:00]} Rxf7 {[%emt 0:00:00]} 41. Rf5 {[%emt 0:00:01]} Be7 {[%emt 0:00:00]} 42. Qxf7+ {[%emt 0:00:01]} Kh8 {[%emt 0:00:00]} 43. Qe8+ {[%emt 0:00:01]} Bf8 {[%emt 0:00:00]} 44. Rxf8# {[%emt 0:00:00] (Lag: Av=0.11s, max=1.2s)} 1-0

[Event "5"]
[Site "Emanuel Lasker Arena"]
[Date "2024.04.09"]
[Round "5"]
[White "Chartwell"]
[Black "CheckMaid"]
[Result "0-1"]
[WhiteElo "2149"]
[BlackElo "1645"]
[Annotator "RC"]
[PlyCount "72"]
[EventDate "2024.04.09"]
[EventType "swiss (blitz)"]
[TimeControl "60"]

1. d4 {[%emt 0:00:01]} Nf6 {[%emt 0:00:01]} 2. c4 {[%emt 0:00:01]} g6 {[%emt 0:00:01]} 3. Nc3 {[%emt 0:00:01]} Bg7 {[%emt 0:00:01]} 4. e4 {[%emt 0:00:01]} d6 {[%emt 0:00:01]} 5. h3 {[%emt 0:00:01]} O-O {[%emt 0:00:01]} 6. Be3 {[%emt 0:00:01]} e5 {[%emt 0:00:01]} 7. d5 {[%emt 0:00:01]} a5 {[%emt 0:00:01]} 8. g4 {[%emt 0:00:00]} a4 {[%emt 0:00:02]} 9. Bg2 {[%emt 0:00:01]} c6 {[%emt 0:00:02]} 10. Nge2 {[%emt 0:00:01]} h5 {[%emt 0:00:04]} 11. g5 {[%emt 0:00:02]} b5 {[%emt 0:00:04]} 12. dxc6 {[%emt 0:00:01]} b4 {[%emt 0:00:03]} 13. gxf6 {[%emt 0:00:01]} Bxf6 {[%emt 0:00:01]} 14. Nb5 {[%emt 0:00:01]} Nxc6 {[%emt 0:00:02]} 15. Nxd6 {[%emt 0:00:01]} Nd4 {[%emt 0:00:03]} 16. c5 {[%emt 0:00:01]} Be6 {[%emt 0:00:03]} 17. Bh6 {[%emt 0:00:05]} b3 {[%emt 0:00:02]} 18. Nxd4 {[%emt 0:00:04]} exd4 {[%emt 0:00:01]} 19. e5 {[%emt 0:00:03]} Bxe5 {[%emt 0:00:01]} 20. O-O {[%emt 0:00:06]} bxa2 {[%emt 0:00:01]} 21. Bxa8 {[%emt 0:00:01]} Qxa8 {[%emt 0:00:01]} 22. Bxf8 {[%emt 0:00:01]} a3 {[%emt 0:00:01]} 23. b4 {[%emt 0:00:03]} Bxh3 {[%emt 0:00:01]} 24. f3 {[%emt 0:00:01]} Bxf1 {[%emt 0:00:01]} 25. Qxf1 {[%emt 0:00:01]} Qd5 {[%emt 0:00:01]} 26. Qf2 {[%emt 0:00:03]} d3 {[%emt 0:00:02]} 27. Bg7 {[%emt 0:00:01]} Bxd6 {[%emt 0:00:01]} 28. cxd6 {[%emt 0:00:01]} Kxg7 {[%emt 0:00:01]} 29. Rxa2 {[%emt 0:00:01]} Qxd6 {[%emt 0:00:01]} 30. b5 {[%emt 0:00:01]} Qf4 {[%emt 0:00:01]} 31. b6 {[%emt 0:00:01]} h4 {[%emt 0:00:01]} 32. b7 {[%emt 0:00:01]} h3 {[%emt 0:00:01]} 33. Rxa3 {[%emt 0:00:01]} d2 {[%emt 0:00:01]} 34. Kh1 {[%emt 0:00:01]} d1=Q+ {[%emt 0:00:01]} 35. Qg1 {[%emt 0:00:01]} Qg5 {[%emt 0:00:02]} 36. Qxd1 {[%emt 0:00:01]} Qg2# {[%emt 0:00:01] (Lag: Av=0.07s, max=0.9s)} 0-1

[Event "5"]
[Site "Emanuel Lasker Arena"]
[Date "2024.04.09"]
[Round "5"]
[White "Toby Ziegler"]
[Black "Roberta Draper"]
[Result "0-1"]
[WhiteElo "2064"]
[BlackElo "1620"]
[Annotator "RC"]
[PlyCount "72"]
[EventDate "2024.04.09"]
[EventType "swiss (blitz)"]
[TimeControl "60"]

1. d4 {[%emt 0:00:00]} f5 {[%emt 0:00:00]} 2. g3 {[%emt 0:00:04]} Nf6 {[%emt 0:00:01]} 3. c4 {[%emt 0:00:04]} e6 {[%emt 0:00:01]} 4. Nf3 {[%emt 0:00:01]} d5 {[%emt 0:00:04]} 5. Bg2 {[%emt 0:00:04]} c6 {[%emt 0:00:04]} 6. Nbd2 {[%emt 0:00:03]} Bd6 {[%emt 0:00:01]} 7. O-O {[%emt 0:00:01]} O-O {[%emt 0:00:01]} 8. b3 {[%emt 0:00:03]} b6 {[%emt 0:00:01]} 9. Bb2 {[%emt 0:00:03]} Nbd7 {[%emt 0:00:01]} 10. Ne5 {[%emt 0:00:03]} Bb7 {[%emt 0:00:01]} 11. Qc2 {[%emt 0:00:01]} Qe7 {[%emt 0:00:01]} 12. Ndf3 {[%emt 0:00:03]} Rac8 {[%emt 0:00:03]} 13. Rfd1 {[%emt 0:00:01]} Rfd8 {[%emt 0:00:03]} 14. Ng5 {[%emt 0:00:02]} Rf8 {[%emt 0:00:02]} 15. e3 {[%emt 0:00:02]} Ne4 {[%emt 0:00:03]} 16. Ngf3 {[%emt 0:00:02]} h5 {[%emt 0:00:06]} 17. Ng6 {[%emt 0:00:02]} Qf6 {[%emt 0:00:02]} 18. Qc3 {[%emt 0:00:02]} Nxc3 {[%emt 0:00:01]} 19. Nxf8 {[%emt 0:00:01]} Ne2+ {[%emt 0:00:02]} 20. Kf1 {[%emt 0:00:01]} Nxg3+ {[%emt 0:00:01]} 21. hxg3 {[%emt 0:00:01]} Rxf8 {[%emt 0:00:01]} 22. a4 {[%emt 0:00:02]} g5 {[%emt 0:00:02]} 23. a5 {[%emt 0:00:02]} h4 {[%emt 0:00:02]} 24. a6 {[%emt 0:00:02]} Ba8 {[%emt 0:00:02]} 25. gxh4 {[%emt 0:00:00]} gxh4 {[%emt 0:00:01]} 26. Bh3 {[%emt 0:00:01]} c5 {[%emt 0:00:02]} 27. dxc5 {[%emt 0:00:01]} Qxb2 {[%emt 0:00:02]} 28. cxd6 {[%emt 0:00:00]} dxc4 {[%emt 0:00:00]} 29. Ng5 {[%emt 0:00:01]} Qf6 {[%emt 0:00:02]} 30. f4 {[%emt 0:00:01]} cxb3 {[%emt 0:00:01]} 31. Rac1 {[%emt 0:00:01]} Nc5 {[%emt 0:00:01]} 32. d7 {[%emt 0:00:01]} Nxa6 {[%emt 0:00:01]} 33. Rc7 {[%emt 0:00:00]} Nxc7 {[%emt 0:00:01]} 34. d8=B {[%emt 0:00:00]} Rxd8 {[%emt 0:00:00]} 35. Rc1 {[%emt 0:00:00]} Qb2 {[%emt 0:00:01]} 36. Rxc7 {[%emt 0:00:00]} Rd1# {[%emt 0:00:00] (Lag: Av=0.07s, max=0.5s)} 0-1

[Event "5"]
[Site "Emanuel Lasker Arena"]
[Date "2024.04.09"]
[Round "5"]
[White "Antonella"]
[Black "Triskaidekaphobe"]
[Result "1/2-1/2"]
[WhiteElo "2040"]
[BlackElo "1620"]
[Annotator "RC"]
[PlyCount "103"]
[EventDate "2024.04.09"]
[EventType "swiss (blitz)"]
[TimeControl "60"]

1. e4 {[%emt 0:00:01]} c5 {[%emt 0:00:01]} 2. Nf3 {[%emt 0:00:01]} d6 {[%emt 0:00:01]} 3. d4 {[%emt 0:00:01]} cxd4 {[%emt 0:00:01]} 4. Nxd4 {[%emt 0:00:01]} Nf6 {[%emt 0:00:01]} 5. Nc3 {[%emt 0:00:01]} g6 {[%emt 0:00:01]} 6. Be3 {[%emt 0:00:01]} Bg7 {[%emt 0:00:01]} 7. f3 {[%emt 0:00:01]} Nc6 {[%emt 0:00:01]} 8. Qd2 {[%emt 0:00:01]} O-O {[%emt 0:00:01]} 9. Bc4 {[%emt 0:00:01]} Bd7 {[%emt 0:00:04]} 10. O-O-O {[%emt 0:00:01]} Rc8 {[%emt 0:00:01]} 11. Bb3 {[%emt 0:00:01]} Nxd4 {[%emt 0:00:01]} 12. Bxd4 {[%emt 0:00:01]} b5 {[%emt 0:00:01]} 13. Nd5 {[%emt 0:00:01]} Nxd5 {[%emt 0:00:01]} 14. Bxg7 {[%emt 0:00:01]} Kxg7 {[%emt 0:00:01]} 15. exd5 {[%emt 0:00:01]} a5 {[%emt 0:00:01]} 16. a3 {[%emt 0:00:01]} b4 {[%emt 0:00:01]} 17. axb4 {[%emt 0:00:01]} axb4 {[%emt 0:00:01]} 18. Qxb4 {[%emt 0:00:01]} Kg8 {[%emt 0:00:01]} 19. Rhe1 {[%emt 0:00:01]} Rb8 {[%emt 0:00:02]} 20. Qd4 {[%emt 0:00:02]} Bb5 {[%emt 0:00:01]} 21. Kb1 {[%emt 0:00:02]} h5 {[%emt 0:00:02]} 22. Qf4 {[%emt 0:00:05]} Ra8 {[%emt 0:00:07]} 23. c4 {[%emt 0:00:05]} Ba4 {[%emt 0:00:03]} 24. Bxa4 {[%emt 0:00:01]} Rxa4 {[%emt 0:00:01]} 25. Re2 {[%emt 0:00:03]} Qc7 {[%emt 0:00:03]} 26. Rde1 {[%emt 0:00:02]} Rxc4 {[%emt 0:00:01]} 27. Rxe7 {[%emt 0:00:01]} Qxe7 {[%emt 0:00:01]} 28. Rxe7 {[%emt 0:00:01]} Rxf4 {[%emt 0:00:01]} 29. Rd7 {[%emt 0:00:02]} Rh4 {[%emt 0:00:02]} 30. h3 {[%emt 0:00:02]} Re8 {[%emt 0:00:02]} 31. Rxd6 {[%emt 0:00:01]} Rd4 {[%emt 0:00:01]} 32. Kc2 {[%emt 0:00:01]} Kh7 {[%emt 0:00:01]} 33. Kc3 {[%emt 0:00:01]} Rd1 {[%emt 0:00:01]} 34. Rd7 {[%emt 0:00:01]} Kh6 {[%emt 0:00:01]} 35. d6 {[%emt 0:00:01]} Re3+ {[%emt 0:00:01]} 36. Kc4 {[%emt 0:00:01]} Re2 {[%emt 0:00:01]} 37. g4 {[%emt 0:00:01]} Rxb2 {[%emt 0:00:01]} 38. Rd8 {[%emt 0:00:01]} Kg5 {[%emt 0:00:01]} 39. d7 {[%emt 0:00:01]} Kh4 {[%emt 0:00:01]} 40. gxh5 {[%emt 0:00:01]} gxh5 {[%emt 0:00:01]} 41. Kc5 {[%emt 0:00:01]} Rc2+ {[%emt 0:00:01]} 42. Kb4 {[%emt 0:00:01]} Rc8 {[%emt 0:00:01]} 43. dxc8=Q {[%emt 0:00:01]} Rb1+ {[%emt 0:00:01]} 44. Ka4 {[%emt 0:00:01]} Ra1+ {[%emt 0:00:01]} 45. Kb5 {[%emt 0:00:01]} Rb1+ {[%emt 0:00:01]} 46. Ka6 {[%emt 0:00:01]} Ra1+ {[%emt 0:00:00]} 47. Kb6 {[%emt 0:00:00]} Rb1+ {[%emt 0:00:00]} 48. Ka7 {[%emt 0:00:00]} Ra1+ {[%emt 0:00:00]} 49. Kb7 {[%emt 0:00:00]} Rb1+ {[%emt 0:00:00]} 50. Ka7 {[%emt 0:00:00]} Ra1+ {[%emt 0:00:00]} 51. Kb7 {[%emt 0:00:00]} Rb1+ {[%emt 0:00:00]} 52. Ka7 {[%emt 0:00:00] (Lag: Av=0.09s, max=1.4s)} 1/2-1/2

[Event "5"]
[Site "Emanuel Lasker Arena"]
[Date "2024.04.09"]
[Round "5"]
[White "NicholasRenzi"]
[Black "Stratospheric"]
[Result "0-1"]
[WhiteElo "2016"]
[BlackElo "1620"]
[Annotator "RC"]
[PlyCount "60"]
[EventDate "2024.04.09"]
[EventType "swiss (blitz)"]
[TimeControl "60"]

1. c4 {[%emt 0:00:01]} c5 {[%emt 0:00:01]} 2. g3 {[%emt 0:00:01]} g6 {[%emt 0:00:01]} 3. Bg2 {[%emt 0:00:01]} Bg7 {[%emt 0:00:01]} 4. Nc3 {[%emt 0:00:01]} Nc6 {[%emt 0:00:01]} 5. a3 {[%emt 0:00:01]} e6 {[%emt 0:00:01]} 6. Rb1 {[%emt 0:00:01]} Nge7 {[%emt 0:00:01]} 7. Nf3 {[%emt 0:00:01]} d5 {[%emt 0:00:01]} 8. b4 {[%emt 0:00:01]} b5 {[%emt 0:00:02]} 9. Ng5 {[%emt 0:00:05]} bxc4 {[%emt 0:00:01]} 10. bxc5 {[%emt 0:00:01]} O-O {[%emt 0:00:04]} 11. O-O {[%emt 0:00:03]} Nf5 {[%emt 0:00:04]} 12. Qa4 {[%emt 0:00:04]} Nfd4 {[%emt 0:00:04]} 13. d3 {[%emt 0:00:03]} Qa5 {[%emt 0:00:03]} 14. e4 {[%emt 0:00:06]} Qxc3 {[%emt 0:00:01]} 15. exd5 {[%emt 0:00:01]} Qxd3 {[%emt 0:00:01]} 16. d6 {[%emt 0:00:03]} Bd7 {[%emt 0:00:01]} 17. Rb8 {[%emt 0:00:03]} Raxb8 {[%emt 0:00:03]} 18. Rd1 {[%emt 0:00:02]} Qb3 {[%emt 0:00:02]} 19. Nxe6 {[%emt 0:00:03]} Qxa4 {[%emt 0:00:01]} 20. Rxd4 {[%emt 0:00:01]} Nxd4 {[%emt 0:00:01]} 21. Nxd4 {[%emt 0:00:01]} Bxd4 {[%emt 0:00:01]} 22. Bd5 {[%emt 0:00:02]} Bxc5 {[%emt 0:00:01]} 23. Be4 {[%emt 0:00:01]} Qd1+ {[%emt 0:00:01]} 24. Kg2 {[%emt 0:00:01]} Qxc1 {[%emt 0:00:01]} 25. a4 {[%emt 0:00:01]} Qe1 {[%emt 0:00:01]} 26. a5 {[%emt 0:00:01]} Qxe4+ {[%emt 0:00:02]} 27. f3 {[%emt 0:00:01]} c3 {[%emt 0:00:03]} 28. fxe4 {[%emt 0:00:01]} Rb2+ {[%emt 0:00:01]} 29. Kh1 {[%emt 0:00:01]} Bc6 {[%emt 0:00:01]} 30. h4 {[%emt 0:00:01]} Bxe4# {[%emt 0:00:01] (Lag: Av=0.05s, max=0.2s)} 0-1

[Event "5"]
[Site "Emanuel Lasker Arena"]
[Date "2024.04.09"]
[Round "5"]
[White "Local Hero"]
[Black "Botwinzig"]
[Result "1/2-1/2"]
[WhiteElo "1983"]
[BlackElo "1810"]
[Annotator "RC"]
[PlyCount "110"]
[EventDate "2024.04.09"]
[EventType "swiss (blitz)"]
[TimeControl "60"]

1. d4 {[%emt 0:00:01]} d5 {[%emt 0:00:00]} 2. c4 {[%emt 0:00:01]} e6 {[%emt 0:00:01]} 3. Nc3 {[%emt 0:00:01]} c5 {[%emt 0:00:01]} 4. e3 {[%emt 0:00:01]} Nf6 {[%emt 0:00:01]} 5. Nf3 {[%emt 0:00:01]} Nc6 {[%emt 0:00:01]} 6. cxd5 {[%emt 0:00:01]} exd5 {[%emt 0:00:01]} 7. Bb5 {[%emt 0:00:01]} cxd4 {[%emt 0:00:01]} 8. exd4 {[%emt 0:00:01]} Bd6 {[%emt 0:00:01]} 9. O-O {[%emt 0:00:01]} O-O {[%emt 0:00:01]} 10. Bg5 {[%emt 0:00:01]} Be6 {[%emt 0:00:01]} 11. Re1 {[%emt 0:00:01]} h6 {[%emt 0:00:04]} 12. b4 {[%emt 0:00:04]} hxg5 {[%emt 0:00:01]} 13. Nxg5 {[%emt 0:00:01]} Bxb4 {[%emt 0:00:01]} 14. Qb3 {[%emt 0:00:04]} Nh7 {[%emt 0:00:04]} 15. Nxe6 {[%emt 0:00:01]} fxe6 {[%emt 0:00:01]} 16. Rxe6 {[%emt 0:00:01]} Nxd4 {[%emt 0:00:01]} 17. Qxb4 {[%emt 0:00:01]} Nxe6 {[%emt 0:00:01]} 18. Re1 {[%emt 0:00:03]} Qb6 {[%emt 0:00:03]} 19. Nxd5 {[%emt 0:00:01]} Qxf2+ {[%emt 0:00:01]} 20. Kh1 {[%emt 0:00:00]} Qxa2 {[%emt 0:00:01]} 21. Bc4 {[%emt 0:00:03]} Qc2 {[%emt 0:00:03]} 22. Nc7 {[%emt 0:00:03]} a5 {[%emt 0:00:02]} 23. Bxe6+ {[%emt 0:00:01]} Kh8 {[%emt 0:00:01]} 24. Qxb7 {[%emt 0:00:03]} Rfb8 {[%emt 0:00:03]} 25. Qxa8 {[%emt 0:00:01]} Rxa8 {[%emt 0:00:01]} 26. Nxa8 {[%emt 0:00:01]} Qc7 {[%emt 0:00:02]} 27. Nxc7 {[%emt 0:00:01]} Nf6 {[%emt 0:00:01]} 28. Rd1 {[%emt 0:00:02]} g5 {[%emt 0:00:01]} 29. Bc4 {[%emt 0:00:02]} Kh7 {[%emt 0:00:01]} 30. Rd7+ {[%emt 0:00:01]} Nxd7 {[%emt 0:00:01]} 31. Bb5 {[%emt 0:00:01]} Nc5 {[%emt 0:00:01]} 32. Bc4 {[%emt 0:00:01]} a4 {[%emt 0:00:01]} 33. Nb5 {[%emt 0:00:01]} Kg7 {[%emt 0:00:01]} 34. Na3 {[%emt 0:00:01]} Nb3 {[%emt 0:00:01]} 35. Bb5 {[%emt 0:00:01]} Nc5 {[%emt 0:00:01]} 36. g3 {[%emt 0:00:01]} Kf6 {[%emt 0:00:01]} 37. Kg2 {[%emt 0:00:01]} Ke5 {[%emt 0:00:01]} 38. h4 {[%emt 0:00:01]} gxh4 {[%emt 0:00:01]} 39. gxh4 {[%emt 0:00:01]} Kd4 {[%emt 0:00:01]} 40. h5 {[%emt 0:00:01]} Ne4 {[%emt 0:00:01]} 41. Bc6 {[%emt 0:00:01]} Nf6 {[%emt 0:00:01]} 42. h6 {[%emt 0:00:00]} Kc3 {[%emt 0:00:00]} 43. Bf3 {[%emt 0:00:01]} Kb4 {[%emt 0:00:00]} 44. Be4 {[%emt 0:00:01]} Nxe4 {[%emt 0:00:00]} 45. h7 {[%emt 0:00:01]} Kxa3 {[%emt 0:00:00]} 46. h8=Q {[%emt 0:00:00]} Kb3 {[%emt 0:00:00]} 47. Kf3 {[%emt 0:00:00]} Nd2+ {[%emt 0:00:00]} 48. Kf2 {[%emt 0:00:00]} Ka2 {[%emt 0:00:00]} 49. Qe5 {[%emt 0:00:00]} Nc4 {[%emt 0:00:01]} 50. Qd5 {[%emt 0:00:00]} Kb3 {[%emt 0:00:00]} 51. Qb5+ {[%emt 0:00:00]} Kc3 {[%emt 0:00:00]} 52. Qxa4 {[%emt 0:00:00]} Kd3 {[%emt 0:00:00]} 53. Qc6 {[%emt 0:00:01]} Kd4 {[%emt 0:00:00]} 54. Qc8 {[%emt 0:00:00]} Nd6 {[%emt 0:00:00]} 55. Qf5 {[%emt 0:00:00]} Nxf5 {[%emt 0:00:00] (Lag: Av=0.08s, max=1.6s)} 1/2-1/2

[Event "5"]
[Site "Emanuel Lasker Arena"]
[Date "2024.04.09"]
[Round "5"]
[White "RCFlyer"]
[Black "Sunset"]
[Result "0-1"]
[WhiteElo "1977"]
[BlackElo "1878"]
[Annotator "RC"]
[PlyCount "54"]
[EventDate "2024.04.09"]
[EventType "swiss (blitz)"]
[TimeControl "60"]

1. e4 {[%emt 0:00:01]} e5 {[%emt 0:00:01]} 2. Nf3 {[%emt 0:00:01]} Nc6 {[%emt 0:00:01]} 3. Bb5 {[%emt 0:00:01]} a6 {[%emt 0:00:01]} 4. Ba4 {[%emt 0:00:01]} Nf6 {[%emt 0:00:01]} 5. O-O {[%emt 0:00:01]} Be7 {[%emt 0:00:00]} 6. Re1 {[%emt 0:00:01]} b5 {[%emt 0:00:01]} 7. Bb3 {[%emt 0:00:01]} O-O {[%emt 0:00:01]} 8. c3 {[%emt 0:00:01]} d6 {[%emt 0:00:01]} 9. d4 {[%emt 0:00:01]} Bg4 {[%emt 0:00:01]} 10. Be3 {[%emt 0:00:01]} exd4 {[%emt 0:00:01]} 11. Bxd4 {[%emt 0:00:01]} Nxd4 {[%emt 0:00:01]} 12. cxd4 {[%emt 0:00:01]} c5 {[%emt 0:00:04]} 13. Nc3 {[%emt 0:00:04]} c4 {[%emt 0:00:03]} 14. Ne5 {[%emt 0:00:02]} b4 {[%emt 0:00:06]} 15. Nxg4 {[%emt 0:00:01]} bxc3 {[%emt 0:00:01]} 16. Nxf6+ {[%emt 0:00:01]} Bxf6 {[%emt 0:00:01]} 17. Bxc4 {[%emt 0:00:01]} cxb2 {[%emt 0:00:01]} 18. Rb1 {[%emt 0:00:02]} Qb6 {[%emt 0:00:03]} 19. Re3 {[%emt 0:00:03]} Qxd4 {[%emt 0:00:01]} 20. Qxd4 {[%emt 0:00:01]} Bxd4 {[%emt 0:00:01]} 21. Rd3 {[%emt 0:00:03]} Bf6 {[%emt 0:00:03]} 22. Rxd6 {[%emt 0:00:01]} Rfc8 {[%emt 0:00:03]} 23. Ra1 {[%emt 0:00:02]} bxa1=Q+ {[%emt 0:00:01]} 24. Bf1 {[%emt 0:00:01]} Rc2 {[%emt 0:00:02]} 25. Rd8+ {[%emt 0:00:01]} Rxd8 {[%emt 0:00:01]} 26. e5 {[%emt 0:00:02]} Qxf1+ {[%emt 0:00:02]} 27. Kxf1 {[%emt 0:00:01]} Rdd2 {[%emt 0:00:01] RCFlyer resigns (Lag: Av=0.11s, max=1.6s)} 0-1

[Event "5"]
[Site "Emanuel Lasker Arena"]
[Date "2024.04.09"]
[Round "5"]
[White "Zimtowitch"]
[Black "Melancholia"]
[Result "1-0"]
[WhiteElo "1896"]
[BlackElo "1620"]
[Annotator "NA RC"]
[PlyCount "49"]
[EventDate "2024.04.09"]
[EventType "swiss (blitz)"]
[TimeControl "60"]

1. d4 {[%emt 0:00:01]} Nf6 {[%emt 0:00:01]} 2. c4 {[%emt 0:00:01]} g6 {[%emt 0:00:01]} 3. Nc3 {[%emt 0:00:01]} Bg7 {[%emt 0:00:01]} 4. e4 {[%emt 0:00:01]} d6 {[%emt 0:00:01]} 5. Nf3 {[%emt 0:00:01]} O-O {[%emt 0:00:01]} 6. Be2 {[%emt 0:00:01]} e5 {[%emt 0:00:01]} 7. O-O {[%emt 0:00:01]} Nc6 {[%emt 0:00:01]} 8. d5 {[%emt 0:00:01]} Nb8 {[%emt 0:00:01]} 9. Bd3 {[%emt 0:00:01]} Bd7 {[%emt 0:00:04]} 10. c5 {[%emt 0:00:01]} dxc5 {[%emt 0:00:01]} 11. Nxe5 {[%emt 0:00:02]} Nxd5 {[%emt 0:00:04]} 12. Nxd7 {[%emt 0:00:01]} Nxc3 {[%emt 0:00:01]} 13. bxc3 {[%emt 0:00:01]} Nxd7 {[%emt 0:00:01]} 14. Rb1 {[%emt 0:00:04]} Re8 {[%emt 0:00:05]} 15. Rxb7 {[%emt 0:00:01]} Bxc3 {[%emt 0:00:01]} 16. Qa4 {[%emt 0:00:04]} Ne5 {[%emt 0:00:03]} 17. Be2 {[%emt 0:00:04]} Qd6 {[%emt 0:00:03]} 18. Bf4 {[%emt 0:00:05]} a6 {[%emt 0:00:03]} 19. Bc4 {[%emt 0:00:02]} Qf6 {[%emt 0:00:03]} 20. Bh6 {[%emt 0:00:03]} Nxc4 {[%emt 0:00:01]} 21. Qxc4 {[%emt 0:00:01]} Qe5 {[%emt 0:00:02]} 22. Bd2 {[%emt 0:00:03]} Bxd2 {[%emt 0:00:01]} 23. Rd1 {[%emt 0:00:02]} c6 {[%emt 0:00:02]} 24. Qxf7+ {[%emt 0:00:02]} Kh8 {[%emt 0:00:01]} 25. Qxh7# {[%emt 0:00:01] (Lag: Av=0.11s, max=1.4s)} 1-0